Cogmind - Beta 15 @@@ ROGUE MODE // 2025.05.10 @ 03:02:00 Player: Florist Result: Destroyed by D-53 Grenadier with Mini Grenade Launcher Performance ------------- Evolutions (0) 0 Regions Visited (2) 400 Robots Destroyed (10) 50 Value Destroyed (283) 283 Prototype IDs (2) 40 Alien Tech Used (0) 0 Bonus (0) 0 TOTAL SCORE: 773 Bonus ------- None Cogmind --------- Core Integrity 0/250 Matter 232/300 Energy 99/100 System Corruption 0% Temperature Cool (0) Movement Core (350) Ox6 Location -10/Mines Parts ------- > --- POWER (1) -------- (None) > --- PROPULSION (2) --- (None) > --- UTILITY (2) ------ Large Storage Unit > --- WEAPON (2) ------- (None) > --- INVENTORY (15) --- Ion Engine Ion Engine Wheel Sensor Array Signal Interpreter Assault Rifle Assault Rifle Assault Rifle Peak State ------------ > --- POWER ------------ Ion Engine > --- PROPULSION ------- Light Treads Light Treads > --- UTILITY ---------- Small Storage Unit Large Storage Unit > --- WEAPON ----------- Assault Rifle Assault Rifle > --- INVENTORY -------- Ion Engine Wheel Compact Wheel Assault Rifle [Rating: 7] Favorites ----------- Power Ion Engine Engine Ion Engine Propulsion Light Treads Treads Light Treads Wheel Wheel Utility Large Storage Unit Storage Large Storage Unit Processor Transport Network Coupler Weapon Assault Rifle Ballistic Gun Assault Rifle Launcher Grenade Launcher Build | -11 -10 -10 ------- Run | Yrd Mat Min Slots Evolved . | . . . Power . | . . . Propulsion . | . . . Utility . | . . . Weapon . | . . . Parts Attached 14 | 6 5 3 Power 1 | 1 . . Engine 1 | 1 . . Core . | . . . Reactor . | . . . Propulsion 4 | 2 . 2 Treads 2 | 2 . . Leg . | . . . Wheel 2 | . . 2 Hover . | . . . Flight . | . . . Utility 3 | 1 2 . Device . | . . . Storage 2 | 1 1 . Processor 1 | . 1 . Hackware . | . . . Protection . | . . . Artifact . | . . . Weapon 6 | 2 3 1 Energy Gun . | . . . Energy Cannon . | . . . Ballistic Gun 5 | 2 2 1 Ballistic Cannon . | . . . Launcher 1 | . 1 . Special Weapon . | . . . Impact Weapon . | . . . Slashing Weapon . | . . . Piercing Weapon . | . . . Special Melee Weapon . | . . . Unidentified Prototypes . | . . . Parts Lost 8 | . . 8 Power 1 | . . 1 Propulsion 4 | . . 4 Utility . | . . . Weapon 3 | . . 3 Highest Loss Streak 5 | . . 5 To Critical Strikes . | . . . Average Backups 5 | 1 5 9 Power 1 | . 1 2 Propulsion 1 | 1 2 1 Utility . | . . 2 Weapon 2 | . 2 3 Tool/Special . | . . . Unused Backups 2 | . . 2 Power 2 | . . 2 Propulsion . | . . . Utility . | . . . Weapon . | . . . Tool/Special . | . . . Average Slot Usage (%) 84 | . 85 82 Engine 14 | . 14 14 Treads 26 | . 28 18 Wheel 1 | . . 7 Storage 14 | . 14 14 Ballistic Gun 26 | . 27 24 Launcher 1 | . . 3 Peak Build Rating 7 | 6 7 7 Average Rating 5 | 4 6 6 On Entrance 4 | . 6 7 Naked Turns . | . . . Heaviest Build 30 | 14 30 30 Greatest Support 40 | 40 40 40 Greatest Overweight (x) 6 | . . 6 Average Overweight (x) . | . . . Largest Inventory Capacity 15 | 8 15 15 Average Capacity 13 | 7 14 15 Most Carried 10 | 3 10 10 Average Carried 5 | 1 5 9 Final Capacity 15 | 8 15 15 Final Carried 10 | 3 10 8 Class Distribution -------------------- 100% | Mutant Dominant Class ---------------- Mutant | -10/Materials Mutant | -10/Mines Resources | -11 -10 -10 ----------- Run | Yrd Mat Min Matter Collected 594 | 237 257 100 Remotely . | . . . Salvage Created 351 | . 299 52 Parts 17 | . 17 . Haulers Intercepted . | . . . Recyclers Shooed . | . . . Parts Field Recycled . | . . . Retrieved Matter . | . . . Parts Self-Destructed . | . . . Prevented . | . . . Kills | -11 -10 -10 ------- Run | Yrd Mat Min Combat Hostiles Destroyed 17 | . 5 12 Guns 9 | . 5 4 AOE 8 | . . 8 Classes Destroyed 4 | . 3 1 Operator 2 | . 2 . Watcher 3 | . 3 . Grunt 5 | . 5 . Assembled 12 | . . 12 Best Kill Streak 12 | . 3 12 Combat Bots Only 12 | . 3 12 Max Kills in Single Turn 3 | . 1 3 Gunslinging . | . . . Exploded 3 | . . 3 Melee . | . . . Uniques/NPCs Destroyed . | . . . Combat | -11 -10 -10 -------- Run | Yrd Mat Min Hostile Shots Fired 69 | . 30 39 Missed 11 | . 4 7 Hits 58 | . 26 32 Melee 3 | . . 3 Projectile 55 | . 26 29 AOE 8 | . . 8 Damage Taken 1087 | . 318 769 Core 270 | . 23 247 Absorbed by Shields . | . . . Core Remaining (%) 100 | 100 . . Volleys Fired 55 | . 37 18 Largest 2 | . 2 2 Hottest 40 | . 40 40 Shots Fired 101 | . 71 30 Gun 94 | . 68 26 Cannon . | . . . Launcher 7 | . 3 4 Special . | . . . Kinetic 94 | . 68 26 Thermal . | . . . Explosive 7 | . 3 4 Electromagnetic . | . . . Robot Hit Streak 18 | . 18 10 Robot Miss Streak 6 | . 5 6 Penetration Max . | . . . Secondary Targets 2 | . . 2 Max Gunslinging Chain 1 | . . 1 Shots Hit Robots 61 | . 43 18 Core Hits 41 | . 19 22 Critical Kills . | . . . Critical Parts Destroyed . | . . . Critical Strikes . | . . . Melee Attacks . | . . . Impact . | . . . Slashing . | . . . Piercing . | . . . Sneak Attacks . | . . . Combat Hostiles . | . . . Follow-up Attacks . | . . . Damage Inflicted 1265 | . 573 692 Guns 772 | . 573 199 Cannons . | . . . Explosions 493 | . . 493 Melee . | . . . Ramming . | . . . Kinetic 772 | . 573 199 Thermal . | . . . Explosive 493 | . . 493 Electromagnetic . | . . . Impact . | . . . Slashing . | . . . Piercing . | . . . Highest Corruption . | . . . Average Corruption . | . . . Corruption Purged . | . . . Corruption Blocked . | . . . Overload Shots . | . . . Overflow Damage 24 | . . 24 Projectiles . | . . . Explosions 24 | . . 24 Melee . | . . . Knockbacks . | . . . Impact . | . . . Kinetic . | . . . Secondary . | . . . Self-Inflicted Damage 95 | . . 95 Shots 3 | . . 3 Rammed . | . . . Targets Rammed . | . . . Kicked . | . . . Crushed . | . . . Highest Temperature 15 | . 2 15 Average Temperature 5 | . 1 10 Received Heat Transfer 223 | . 183 40 Siege Activations . | . . . Martial Activations . | . . . Shielding Activations . | . . . Robots Disrupted . | . . . Combat Hostiles . | . . . Robots Corrupted . | . . . Combat Hostiles . | . . . Parts Fried . | . . . Impact Corruptions . | . . . Robots Melted . | . . . Combat Hostiles . | . . . Parts Melted . | . . . Heat Transferred . | . . . Parts Sabotaged . | . . . Parts Stolen . | . . . Parts Stripped . | . . . Power Chain Reactions . | . . . Alert | -11 -10 -10 ------- Run | Yrd Mat Min Maximum Alert Level . | . . . Low Security (%) 100 | 100 100 100 Level 1 . | . . . Level 2 . | . . . Level 3 . | . . . Level 4 . | . . . Level 5 . | . . . High Security . | . . . Max Security . | . . . Peak Influence 106 | . 106 17 Initial 16 | . . 16 Average 24 | . 30 3 Influence Increases 270 | . 253 17 Destroy 0b10 Robot/C 100 | . 100 . Destroy 0b10 Robot/NC 25 | . 25 . Destroy Leader 36 | . 36 . Successful Hack 17 | . 17 . Disable Machine 30 | . 30 . Destroy Structure 32 | . 15 17 Lose Combat Pursuer 30 | . 30 . Influence Decreases 270 | . 211 59 Entered New Map 26 | . . 26 Time Decay 237 | . 211 26 Lost Part 7 | . . 7 Squads Dispatched 2 | . 2 . Investigation . | . . . Extermination . | . . . Reinforcement 2 | . 2 . Assault . | . . . Garrison . | . . . Intercept . | . . . Searches Triggered . | . . . Construction Impeded . | . . . Haulers Reinforced . | . . . Active Scanning Responses . | . . . Cargo Convoy Interrupts . | . . . Stealth | -11 -10 -10 --------- Run | Yrd Mat Min Distress Signals . | . . . Communications Jammed . | . . . Distress Signals . | . . . Times Spotted 34 | . 13 21 Peak Tracking Total 19 | . 5 19 Tactical Retreats 1 | . 1 . Traps | -11 -10 -10 ------- Run | Yrd Mat Min Traps Triggered . | . . . Indirectly . | . . . Trap Hack Attempts . | . . . Triggered . | . . . Disarmed . | . . . Reprogrammed . | . . . Reused . | . . . Traps Extracted . | . . . Installed . | . . . Triggered . | . . . Machines | -11 -10 -10 ---------- Run | Yrd Mat Min Machines Disabled 2 | . 2 . Max in Single Turn 1 | . 1 . Machines Repaired . | . . . Machines Dismantled . | . . . Machines Sabotaged . | . . . Overloaded Fab Kills . | . . . Hacking | -11 -10 -10 --------- Run | Yrd Mat Min Machines Accessed 6 | . 6 . Terminals 5 | . 5 . Fabricators . | . . . Repair Stations . | . . . Recycling Units 1 | . 1 . Scanalyzers . | . . . Garrison Access . | . . . Total Hacks 15 | . 15 . Successful 7 | . 7 . Failed 8 | . 8 . Catastrophic . | . . . Database Lockouts . | . . . Manual 9 | . 9 . Terminals 13 | . 13 . Fabricators . | . . . Repair Stations . | . . . Recycling Units 2 | . 2 . Scanalyzers . | . . . Garrison Access . | . . . Terminal Hacks 2 | . 2 . Prototype ID Bank 1 | . 1 . Terminal Index 1 | . 1 . Fabricator Hacks . | . . . Repair Station Hacks . | . . . Recycling Unit Hacks . | . . . Scanalyzer . | . . . Garrison Access Hacks . | . . . Unauthorized Hacks 5 | . 5 . Terminals 4 | . 4 . Botnet 4 | . 4 . Fabricators . | . . . Repair Stations . | . . . Recycling Units 1 | . 1 . Mask 1 | . 1 . Scanalyzers . | . . . Garrison Access . | . . . Data Cores Recovered 1 | . 1 . Used . | . . . Hacking Detections 5 | . 5 . Full Trace Events . | . . . Feedback Events . | . . . Feedback Blocked . | . . . Robot Schematics Acquired . | . . . Robots Built . | . . . Authchips . | . . . Time . | . . . Total Robot Build Rating . | . . . Part Schematics Acquired . | . . . Parts Built . | . . . Authchips . | . . . Time . | . . . Total Part Build Rating . | . . . Parts Repaired . | . . . Time . | . . . Parts Recycled . | . . . Recycled Matter . | . . . Retrieved Matter . | . . . Retrieved Components . | . . . Parts Scanalyzed . | . . . Part Schematics Acquired . | . . . Parts Damaged . | . . . Bothacking | -11 -10 -10 ------------ Run | Yrd Mat Min Used RIF Installer . | . . . Robots Hacked . | . . . Non-combat . | . . . Combat . | . . . Robot Hacks Applied . | . . . Relay Couplers Released . | . . . Fabnet Peak Effective % . | . . . Robots Rewired . | . . . Allies Hacked . | . . . Hacks Repelled . | . . . Allies | -11 -10 -10 -------- Run | Yrd Mat Min Total Allies . | . . . Largest Group . | . . . Highest-Rated Group . | . . . Highest-Rated Ally . | . . . Total Orders . | . . . Ally Attacks . | . . . Total Damage . | . . . Kills . | . . . Allies Corrupted . | . . . Allies Melted . | . . . Intel | -11 -10 -10 ------- Run | Yrd Mat Min Active Infowar (turns) 2 | . 2 . T.N.C. 2 | . 2 . Robot Analysis Total . | . . . Derelict Logs Recovered 1 | . . 1 Drone Launches . | . . . Drone Recoveries . | . . . Exploration | -11 -10 -10 ------------- Run | Yrd Mat Min Turns Passed 1117 | 85 882 150 Spaces Moved 571 | 48 466 57 Core 3 | 2 . 1 Treads 549 | 46 466 37 Legs . | . . . Wheels 19 | . . 19 Hover . | . . . Flight . | . . . Fastest Speed 50 | 50 160 105 Average Speed 158 | 155 160 145 Slowest Speed 350 | 160 160 350 Overloaded Moves . | . . . Propulsion Burnouts . | . . . Robots Hopped . | . . . Potential Cave-ins . | . . . Cave-ins Triggered . | . . . Exploration Rate (%) 30 | 5 65 20 Regions Visited 2 Branch Regions 1 Pre-discovered Areas 1 | . . 1 Known Exits Taken . | . . . Unknown Exits Taken 2 | 1 1 . Scrap Searched . | . . . Spaces Dug 17 | . 7 10 Terrain Destroyed 53 | . 15 38 Melee . | . . . Projectile . | . . . AOE 53 | . 15 38 Terrain Rammed . | . . . Walls Destroyed . | . . . Machines Disabled . | . . . Actions | -11 -10 -10 --------- Run | Yrd Mat Min Total 683 | 56 530 97 Wait 32 | . 15 17 Move 569 | 47 465 57 Hop . | . . . Pick Up 10 | 3 6 1 Fast Attach 8 | 6 2 . Attach 3 | . . 3 Detach . | . . . Swap 4 | . 3 1 Drop 2 | . 2 . Fire 55 | . 37 18 Melee . | . . . Ram . | . . . Kick . | . . . Crush . | . . . Escape Stasis . | . . . Rewire . | . . . Trap . | . . . Miscellaneous . | . . . Route ------- -11/Scrapyard -10/Materials (discovered 3 exits: [*Mat x2] / [*Min]) -10/Mines History --------- Turn | Location | Event 26 | -11/Scrapyard | Discovered new exit (range 16) 86 | -11/Scrapyard | Entered Materials 309 | -10/Materials | Discovered new exit (range 15) 315 | -10/Materials | Build established: Mutant 573 | -10/Materials | Discovered new exit (range 16) 696 | -10/Materials | Discovered new exit (range 6) 968 | -10/Materials | Entered Mines 968 | -10/Mines | Learned location of Storage (-8) 1003 | -10/Mines | Assembled infested the area 1008 | -10/Mines | Assisted by a Guerilla fighting off Assembled 1091 | -10/Mines | Lost 3 parts (2n1w) 1109 | -10/Mines | Destroyed 12 combat bots 1114 | -10/Mines | Core integrity fell below 50% 1117 | -10/Mines | Core integrity fell below 20% 1118 | -10/Mines | Destroyed by D-53 Grenadier with Mini Grenade Launcher Last Messages --------------- 01093_ Acquired 19 matter. 01094_ Acquired 20 matter. 01095_ Acquired 23 matter. 01097_ Acquired Wheel. 01101_ The unstable cave ceiling collapses. 01104_ Acquired 5 matter. 01105_ Acquired 3 matter. 01107_ Acquired 18 matter. 01108_ Acquired 10 matter. 01109_ Acquired 2 matter. 01112_ U-05 Engineer lays Concrete. 01113_ Ion Engine destroyed. 01114_ U-05 Engineer lays Concrete. 01114_ Com. Wheel destroyed. 01115_ The unstable cave ceiling collapses. 01116_ U-05 Engineer lays Concrete. 01116_ Assault Rifle destroyed. 01117_ The unstable cave ceiling collapses. 01117_ U-05 Engineer builds a Wall. 01118_ Wheel destroyed. Map ----- +----------------------------------------------------+ | | | | | | | | | | | | | | | | | | | | | | | | | | | | | | | | | ?????????????????????????????????????????????????? | | ?????????????????????????????????????????????????? | | ?????????????????????????????????????????????????? | | ?????????????????????????????????????????????????? | | ?????????????????????????????????????????????????? | | ?????????????????????#######????#######??????????? | | ????????????????????## # ###### # ###????????? | | ???????????????????## ## ## # #????????? | | ????????????????#### # # ########## | | ????????????????# @ u | | ???????????????# < # # # ########## | | ???????????????# # # #????????? | | ???????????????## ##### #### #????????? | | ????????????????##### #??###### #????????? | | ????????????????????## #???????# ########## | | ????????????????????? d #???????# | | ????????????????????## #u d #???????# ##### | | ?????????????????????# ## # #???????# #???# " | | ?????????????????????# ??# ###??????? #???# " | | ?????????????????????###??? #????????# ##???# " | | ??????????????????????????? %????????# ?????# | | ??????????????????????????? ????????? ?????# " | | ???????????????????????????###??????? ?????# " | | ????????????????????????????????????? ?????# " | | ????????????????????????????????????? ?????# | | ????????????????????????????????????? ?????# " | | ???????????????????????????????????? ?????# " | | ???????????????????????????????????? ??????# " | | ???????????????????????????????????? ??????# | | ???????????????????????????????????? #??????# | | ????????????????????????????????????????????###### | | ?????????????????????????????????????????????????? | | ?????????????????????????????????????????????????? | | ?????????????????????????????????????????????????? | +----------------------------------------------------+ Best States ------------- Heat Dissipation 25 Energy Generation 10 Energy Capacity 250 Matter Stores 300 Matter Capacity 300 Sight Range 16 Terrain Scan Density 10 Evasion (%) 40 Recoil Reduction 2 Item Schematics ----------------- None Robot Schematics ------------------ None Fabricated ------------ Nothing Repaired ---------- Nothing Alien Tech Used ----------------- None Achievements -------------- None Challenges ------------ None Game ------ Seed DrainedChainReconfigurator Manual? 0 Play Time 00:09:02 Cumulative 72.1 hours Start 2025.05.10 @ 02:55:07 End 2025.05.10 @ 03:02:00 Sessions 1 Manual Loads 0 Difficulty Rogue Special Mode None Game No. 91 Rogue 91 Adventurer 0 Explorer 0 Win Type - Total 0 Types 0/0/0/0/0/0/0/0/0/0 Lore% 37 Gallery% 43 Achievement% 40 Wizard Run 0 Options --------- Layout 1 ASCII 0 Keyboard 0 Movement Mouse Keybinds 0 Fullscreen 1 Font 32/SmallcapsGlow Map View 77x35 Zoom Use 0% Tactical HUD 1 Map Filters NONE Filters NONE Steam 1 RUN: 9f8e8a84-40fb-4db9-a0c8-72137e9594fb